[Event "Titled Tuesday Blitz May 30 Late 2023"]
[White "Makridis, Dimitrios"]
[Black "Urquhart, Ed"]
[WhiteFideId "25864475"]
[BlackFideId "2603748"]
[WhiteElo "2277"]
[BlackElo "2184"]
[Result "1-0"]
[Round "02"]
[TimeControl "180+2"]
[Date "2023.05.31"]
[WhiteClock "0:00:13"]
[BlackClock "0:00:15"]

1. e4 {[%clk 0:02:46]}  c5 {[%clk 0:02:59]} 2. Nf3 {[%clk 0:02:43]}  e6 {[%clk 0:02:59]} 3. d4 {[%clk 0:02:40]}  cxd4 {[%clk 0:03:00]} 4. Nxd4 {[%clk 0:02:41]}  Nc6 {[%clk 0:03:00]} 5. Nc3 {[%clk 0:02:41]}  Qc7 {[%clk 0:02:59]} 6. a3 {[%clk 0:02:35]}  a6 {[%clk 0:02:59]} 7. Be2 {[%clk 0:02:26]}  Nf6 {[%clk 0:02:59]} 8. Be3 {[%clk 0:02:24]}  Be7 {[%clk 0:02:59]} 9. O-O {[%clk 0:02:23]}  O-O {[%clk 0:03:00]} 10. f4 {[%clk 0:02:23]}  d6 {[%clk 0:03:00]} 11. Qe1 {[%clk 0:02:23]}  Bd7 {[%clk 0:02:55]} 12. h3 {[%clk 0:02:22]}  Na5 {[%clk 0:02:47]} 13. Rd1 {[%clk 0:02:01]}  Nc4 {[%clk 0:02:44]} 14. Bxc4 {[%clk 0:02:01]}  Qxc4 {[%clk 0:02:45]} 15. e5 {[%clk 0:02:02]}  Ne8 {[%clk 0:02:37]} 16. Ne4 {[%clk 0:01:57]}  Bc6 {[%clk 0:02:16]} 17. Nxc6 {[%clk 0:01:49]}  Qxc6 {[%clk 0:02:15]} 18. Bd4 {[%clk 0:01:43]}  d5 {[%clk 0:02:07]} 19. Nc3 {[%clk 0:01:35]}  g6 {[%clk 0:02:07]} 20. Kh1 {[%clk 0:01:35]}  Ng7 {[%clk 0:02:07]} 21. g4 {[%clk 0:01:30]}  b5 {[%clk 0:02:07]} 22. Rd2 {[%clk 0:01:27]}  a5 {[%clk 0:02:07]} 23. Ne2 {[%clk 0:01:26]}  b4 {[%clk 0:02:04]} 24. axb4 {[%clk 0:01:27]}  axb4 {[%clk 0:02:04]} 25. Ng3 {[%clk 0:01:27]}  Ra2 {[%clk 0:01:58]} 26. f5 {[%clk 0:01:27]}  Bc5 {[%clk 0:01:49]} 27. f6 {[%clk 0:01:23]}  Ne8 {[%clk 0:01:48]} 28. Qe3 {[%clk 0:01:06]}  Bxd4 {[%clk 0:01:47]} 29. Qxd4 {[%clk 0:01:07]}  Nc7 {[%clk 0:01:35]} 30. Qf4 {[%clk 0:00:56]}  Rfa8 {[%clk 0:01:30]} 31. Rg2 {[%clk 0:00:53]}  Ne8 {[%clk 0:01:23]} 32. Nh5 {[%clk 0:00:52]}  Ra1 {[%clk 0:01:19]} 33. Rxa1 {[%clk 0:00:39]}  Rxa1+ {[%clk 0:01:18]} 34. Kh2 {[%clk 0:00:39]}  Qc4 {[%clk 0:01:07]} 35. Qxc4 {[%clk 0:00:38]}  dxc4 {[%clk 0:01:06]} 36. Ng3 {[%clk 0:00:32]}  Rd1 {[%clk 0:01:05]} 37. c3 {[%clk 0:00:24]}  b3 {[%clk 0:01:04]} 38. Ne4 {[%clk 0:00:24]}  Rd5 {[%clk 0:00:57]} 39. Rd2 {[%clk 0:00:19]}  Nc7 {[%clk 0:00:52]} 40. Rxd5 {[%clk 0:00:18]}  exd5 {[%clk 0:00:51]} 41. Nd6 {[%clk 0:00:18]}  Kf8 {[%clk 0:00:39]} 42. Kg3 {[%clk 0:00:17]}  Ne8 {[%clk 0:00:39]} 43. Nb5 {[%clk 0:00:06]}  h6 {[%clk 0:00:19]} 44. Kf4 {[%clk 0:00:05]}  Kg8 {[%clk 0:00:16]} 45. h4 {[%clk 0:00:04]}  Kh7 {[%clk 0:00:16]} 46. g5 {[%clk 0:00:04]}  Kg8 {[%clk 0:00:15]} 47. Ke3 {[%clk 0:00:03]}  Ng7 {[%clk 0:00:10]} 48. fxg7 {[%clk 0:00:02]}  Kxg7 {[%clk 0:00:11]} 49. Nc7 {[%clk 0:00:02]}  Kf8 {[%clk 0:00:10]} 50. Nxd5 {[%clk 0:00:03]}  Ke8 {[%clk 0:00:10]} 51. Kf4 {[%clk 0:00:03]}  Kd7 {[%clk 0:00:11]} 52. h5 {[%clk 0:00:04]}  Ke6 {[%clk 0:00:12]} 53. gxh6 {[%clk 0:00:05]}  Kxd5 {[%clk 0:00:12]} 54. hxg6 {[%clk 0:00:06]}  fxg6 {[%clk 0:00:11]} 55. Kg5 {[%clk 0:00:06]}  Kxe5 {[%clk 0:00:11]} 56. h7 {[%clk 0:00:07]}  Ke4 {[%clk 0:00:11]} 57. h8=Q {[%clk 0:00:08]}  Kd3 {[%clk 0:00:12]} 58. Qd4+ {[%clk 0:00:08]}  Kc2 {[%clk 0:00:13]} 59. Qxc4 {[%clk 0:00:09]}  Kxb2 {[%clk 0:00:14]} 60. Qb4 {[%clk 0:00:10]}  Kc2 {[%clk 0:00:14]} 61. c4 {[%clk 0:00:11]}  b2 {[%clk 0:00:13]} 62. c5 {[%clk 0:00:12]}  Kd3 {[%clk 0:00:14]} 63. Qxb2 {[%clk 0:00:11]}  Ke4 {[%clk 0:00:15]} 64. c6 {[%clk 0:00:12]}  Kd5 {[%clk 0:00:14]} 65. c7 {[%clk 0:00:13]}  Kd6 {[%clk 0:00:15]} 66. c8=Q {[%clk 0:00:13]}  Ke7 {[%clk 0:00:15]} 67. Qb6 {[%clk 0:00:13]} 1-0


[Site "https://www.chess.com"]

[Event "Titled Tuesday Blitz May 30 Late 2023"]
[White "Manukyan, Sargis V."]
[Black "Devagharan, Devina"]
[WhiteFideId "13303465"]
[BlackFideId "2061600"]
[WhiteElo "2236"]
[BlackElo "2417"]
[Result "0-1"]
[Round "02"]
[TimeControl "180+2"]
[Date "2023.05.31"]
[WhiteClock "0:00:03"]
[BlackClock "0:00:25"]

1. d4 {[%clk 0:03:00]}  d5 {[%clk 0:02:48]} 2. Bg5 {[%clk 0:02:59]}  Nf6 {[%clk 0:02:44]} 3. Bxf6 {[%clk 0:02:58]}  exf6 {[%clk 0:02:45]} 4. g3 {[%clk 0:02:57]}  c6 {[%clk 0:02:45]} 5. Bg2 {[%clk 0:02:57]}  Bd6 {[%clk 0:02:45]} 6. Nd2 {[%clk 0:02:57]}  O-O {[%clk 0:02:42]} 7. Ngf3 {[%clk 0:02:57]}  Re8 {[%clk 0:02:38]} 8. c4 {[%clk 0:02:58]}  dxc4 {[%clk 0:02:17]} 9. O-O {[%clk 0:02:55]}  Be6 {[%clk 0:02:09]} 10. Qc2 {[%clk 0:02:50]}  Nd7 {[%clk 0:01:53]} 11. Nxc4 {[%clk 0:02:48]}  Bxc4 {[%clk 0:01:48]} 12. Qxc4 {[%clk 0:02:47]}  Nb6 {[%clk 0:01:49]} 13. Qb3 {[%clk 0:02:45]}  Rxe2 {[%clk 0:01:46]} 14. a4 {[%clk 0:02:25]}  Qc7 {[%clk 0:01:41]} 15. Rac1 {[%clk 0:02:11]}  Qd7 {[%clk 0:01:18]} 16. h4 {[%clk 0:01:36]}  Rae8 {[%clk 0:01:13]} 17. h5 {[%clk 0:01:34]}  Qg4 {[%clk 0:01:06]} 18. a5 {[%clk 0:01:33]}  Nd5 {[%clk 0:00:48]} 19. Nh2 {[%clk 0:01:08]}  Qg5 {[%clk 0:00:40]} 20. a6 {[%clk 0:00:27]}  Ne3 {[%clk 0:00:34]} 21. Qd3 {[%clk 0:00:10]}  Bxg3 {[%clk 0:00:29]} 22. Nf3 {[%clk 0:00:09]}  Bh2+ {[%clk 0:00:25]} 23. Kh1 {[%clk 0:00:03]}  Qxg2# {[%clk 0:00:25]} 0-1


[Site "https://www.chess.com"]

[Event "Titled Tuesday Blitz May 30 Late 2023"]
[White "Smiechu"]
[Black "Turayev, Shahruh"]
[BlackFideId "14003856"]
[WhiteElo "2358"]
[BlackElo "2185"]
[Result "0-1"]
[Round "02"]
[TimeControl "180+2"]
[Date "2023.05.31"]
[WhiteClock "0:00:12"]
[BlackClock "0:01:21"]

1. e4 {[%clk 0:03:00]}  d5 {[%clk 0:02:59]} 2. exd5 {[%clk 0:03:00]}  Qxd5 {[%clk 0:02:59]} 3. Nf3 {[%clk 0:03:01]}  Nf6 {[%clk 0:02:59]} 4. d4 {[%clk 0:03:00]}  Nc6 {[%clk 0:03:00]} 5. c4 {[%clk 0:03:00]}  Qh5 {[%clk 0:03:00]} 6. Be2 {[%clk 0:02:59]}  Bg4 {[%clk 0:02:59]} 7. Nc3 {[%clk 0:02:55]}  O-O-O {[%clk 0:02:57]} 8. Be3 {[%clk 0:02:55]}  e5 {[%clk 0:02:56]} 9. d5 {[%clk 0:02:55]}  e4 {[%clk 0:02:56]} 10. Nd4 {[%clk 0:02:49]}  Nxd4 {[%clk 0:02:54]} 11. Bxd4 {[%clk 0:02:48]}  Bxe2 {[%clk 0:02:49]} 12. Nxe2 {[%clk 0:02:48]}  Bb4+ {[%clk 0:02:48]} 13. Bc3 {[%clk 0:02:45]}  Bxc3+ {[%clk 0:02:47]} 14. Nxc3 {[%clk 0:02:40]}  Qe5 {[%clk 0:02:39]} 15. O-O {[%clk 0:02:31]}  h5 {[%clk 0:02:38]} 16. Re1 {[%clk 0:02:03]}  Ng4 {[%clk 0:02:21]} 17. g3 {[%clk 0:02:00]}  f5 {[%clk 0:02:22]} 18. Nb5 {[%clk 0:01:58]}  a6 {[%clk 0:02:20]} 19. Nd4 {[%clk 0:01:56]}  h4 {[%clk 0:02:20]} 20. Nf3 {[%clk 0:01:30]}  Qd6 {[%clk 0:02:14]} 21. c5 {[%clk 0:01:24]}  Qxd5 {[%clk 0:02:10]} 22. Qxd5 {[%clk 0:01:12]}  Rxd5 {[%clk 0:02:11]} 23. Nxh4 {[%clk 0:01:13]}  g5 {[%clk 0:02:11]} 24. Ng2 {[%clk 0:01:10]}  Rd2 {[%clk 0:02:10]} 25. Ne3 {[%clk 0:01:04]}  Nxh2 {[%clk 0:02:03]} 26. Kg2 {[%clk 0:00:44]}  f4 {[%clk 0:01:58]} 27. Nc4 {[%clk 0:00:39]}  Rc2 {[%clk 0:01:51]} 28. Rxe4 {[%clk 0:00:38]}  Ng4 {[%clk 0:01:44]} 29. Rf1 {[%clk 0:00:33]}  Rh2+ {[%clk 0:01:34]} 30. Kg1 {[%clk 0:00:32]}  Rhxf2 {[%clk 0:01:26]} 31. Rxf2 {[%clk 0:00:18]}  Nxf2 {[%clk 0:01:27]} 32. Rd4 {[%clk 0:00:14]}  Nh3+ {[%clk 0:01:20]} 33. Kh1 {[%clk 0:00:13]}  fxg3 {[%clk 0:01:21]} 34. Rg4 {[%clk 0:00:12]}  Rh2# {[%clk 0:01:21]} 0-1


[Site "https://www.chess.com"]

[Event "Titled Tuesday Blitz May 30 Late 2023"]
[White "Ezat, Mohamed"]
[Black "zsizsi99"]
[WhiteFideId "10600906"]
[WhiteElo "2386"]
[BlackElo "2365"]
[Result "1-0"]
[Round "02"]
[TimeControl "180+2"]
[Date "2023.05.31"]
[WhiteClock "0:00:34"]
[BlackClock "0:00:01"]

1. e4 {[%clk 0:03:00]}  c5 {[%clk 0:02:58]} 2. d4 {[%clk 0:03:00]}  cxd4 {[%clk 0:02:58]} 3. c3 {[%clk 0:03:01]}  Nf6 {[%clk 0:02:57]} 4. e5 {[%clk 0:03:00]}  Nd5 {[%clk 0:02:58]} 5. Nf3 {[%clk 0:03:01]}  d6 {[%clk 0:02:57]} 6. Bc4 {[%clk 0:03:01]}  dxe5 {[%clk 0:02:44]} 7. Nxe5 {[%clk 0:03:00]}  e6 {[%clk 0:02:39]} 8. O-O {[%clk 0:02:59]}  Be7 {[%clk 0:02:24]} 9. Qxd4 {[%clk 0:02:55]}  O-O {[%clk 0:02:23]} 10. Bxd5 {[%clk 0:02:30]}  Qxd5 {[%clk 0:02:23]} 11. Qxd5 {[%clk 0:02:28]}  exd5 {[%clk 0:02:23]} 12. Re1 {[%clk 0:02:28]}  Bf6 {[%clk 0:02:16]} 13. Bf4 {[%clk 0:02:27]}  g5 {[%clk 0:02:05]} 14. Bg3 {[%clk 0:02:26]}  h5 {[%clk 0:02:01]} 15. h3 {[%clk 0:02:25]}  Nc6 {[%clk 0:01:54]} 16. Na3 {[%clk 0:02:23]}  a6 {[%clk 0:01:46]} 17. Nc2 {[%clk 0:02:22]}  Be6 {[%clk 0:01:34]} 18. Rad1 {[%clk 0:02:11]}  Rad8 {[%clk 0:01:22]} 19. Nxc6 {[%clk 0:02:09]}  bxc6 {[%clk 0:01:22]} 20. Nb4 {[%clk 0:02:09]}  d4 {[%clk 0:01:20]} 21. Nxc6 {[%clk 0:02:05]}  Rc8 {[%clk 0:01:06]} 22. Nxd4 {[%clk 0:02:02]}  Bxd4 {[%clk 0:01:06]} 23. Rxd4 {[%clk 0:02:01]}  Bxa2 {[%clk 0:01:07]} 24. Re5 {[%clk 0:01:58]}  f6 {[%clk 0:01:04]} 25. Ra5 {[%clk 0:01:58]}  Bc4 {[%clk 0:01:02]} 26. h4 {[%clk 0:01:52]}  Bb5 {[%clk 0:00:53]} 27. hxg5 {[%clk 0:01:50]}  fxg5 {[%clk 0:00:53]} 28. c4 {[%clk 0:01:42]}  Rxc4 {[%clk 0:00:25]} 29. Rxc4 {[%clk 0:01:42]}  Bxc4 {[%clk 0:00:26]} 30. Rxg5+ {[%clk 0:01:41]}  Kh7 {[%clk 0:00:27]} 31. Rxh5+ {[%clk 0:01:41]}  Kg6 {[%clk 0:00:27]} 32. Rc5 {[%clk 0:01:41]}  Bb5 {[%clk 0:00:25]} 33. f4 {[%clk 0:01:40]}  Rf5 {[%clk 0:00:21]} 34. Rc8 {[%clk 0:01:38]}  Rd5 {[%clk 0:00:17]} 35. Be1 {[%clk 0:01:31]}  Kf5 {[%clk 0:00:13]} 36. Rf8+ {[%clk 0:01:28]}  Kg4 {[%clk 0:00:14]} 37. Kf2 {[%clk 0:01:11]}  Rf5 {[%clk 0:00:10]} 38. Rg8+ {[%clk 0:01:03]}  Kxf4 {[%clk 0:00:09]} 39. Bc3 {[%clk 0:01:02]}  Ke4+ {[%clk 0:00:09]} 40. Kg1 {[%clk 0:01:03]}  Rf7 {[%clk 0:00:06]} 41. Rg5 {[%clk 0:01:01]}  Kf4 {[%clk 0:00:06]} 42. Bd2+ {[%clk 0:00:59]}  Ke4 {[%clk 0:00:06]} 43. Rg3 {[%clk 0:00:53]}  Ke5 {[%clk 0:00:05]} 44. Re3+ {[%clk 0:00:50]}  Kf6 {[%clk 0:00:05]} 45. Kh2 {[%clk 0:00:49]}  Kg6 {[%clk 0:00:05]} 46. Bc3 {[%clk 0:00:47]}  Rd7 {[%clk 0:00:05]} 47. g4 {[%clk 0:00:45]}  Rd3 {[%clk 0:00:05]} 48. Re5 {[%clk 0:00:44]}  Rf3 {[%clk 0:00:04]} 49. Kg2 {[%clk 0:00:42]}  Rd3 {[%clk 0:00:03]} 50. Rc5 {[%clk 0:00:39]}  Kf7 {[%clk 0:00:01]} 51. Kf2 {[%clk 0:00:37]}  Kg6 {[%clk 0:00:01]} 52. Kg2 {[%clk 0:00:35]}  Kf7 {[%clk 0:00:01]} 53. Rg5 {[%clk 0:00:34]} 1-0


[Site "https://www.chess.com"]

[Event "Titled Tuesday Blitz May 30 Late 2023"]
[White "Demidov, Mikhail"]
[Black "Carrasco Miranda, Andres"]
[WhiteFideId "4197143"]
[BlackFideId "3405990"]
[WhiteElo "2500"]
[BlackElo "2183"]
[Result "1-0"]
[Round "02"]
[TimeControl "180+2"]
[Date "2023.05.31"]
[WhiteClock "0:00:19"]
[BlackClock "0:00:02"]

1. Nf3 {[%clk 0:03:00]}  Nf6 {[%clk 0:02:47]} 2. g3 {[%clk 0:03:01]}  g6 {[%clk 0:02:47]} 3. b3 {[%clk 0:03:01]}  Bg7 {[%clk 0:02:47]} 4. Bb2 {[%clk 0:03:02]}  O-O {[%clk 0:02:47]} 5. Bg2 {[%clk 0:03:03]}  d5 {[%clk 0:02:48]} 6. c4 {[%clk 0:03:03]}  c6 {[%clk 0:02:42]} 7. O-O {[%clk 0:03:02]}  a5 {[%clk 0:02:40]} 8. Nc3 {[%clk 0:03:00]}  Na6 {[%clk 0:02:33]} 9. Rc1 {[%clk 0:02:56]}  Be6 {[%clk 0:02:33]} 10. cxd5 {[%clk 0:02:53]}  cxd5 {[%clk 0:02:32]} 11. Na4 {[%clk 0:02:53]}  Rc8 {[%clk 0:02:28]} 12. Rxc8 {[%clk 0:02:46]}  Qxc8 {[%clk 0:02:29]} 13. Nd4 {[%clk 0:02:42]}  Bd7 {[%clk 0:02:25]} 14. Nb6 {[%clk 0:02:41]}  Qd8 {[%clk 0:02:24]} 15. Nxd7 {[%clk 0:02:41]}  Qxd7 {[%clk 0:02:25]} 16. Qb1 {[%clk 0:02:41]}  e5 {[%clk 0:02:22]} 17. Nf3 {[%clk 0:02:36]}  e4 {[%clk 0:02:22]} 18. Nd4 {[%clk 0:02:36]}  Rc8 {[%clk 0:02:17]} 19. Rc1 {[%clk 0:02:36]}  Nb4 {[%clk 0:02:13]} 20. Rxc8+ {[%clk 0:02:30]}  Qxc8 {[%clk 0:02:14]} 21. a3 {[%clk 0:02:29]}  Nc6 {[%clk 0:02:13]} 22. Qc2 {[%clk 0:02:19]}  Nd7 {[%clk 0:02:03]} 23. d3 {[%clk 0:02:04]}  f5 {[%clk 0:01:49]} 24. dxe4 {[%clk 0:02:01]}  fxe4 {[%clk 0:01:49]} 25. Bh3 {[%clk 0:02:00]}  Bxd4 {[%clk 0:01:03]} 26. Be6+ {[%clk 0:01:50]}  Kf8 {[%clk 0:01:03]} 27. Bxd4 {[%clk 0:01:49]}  Qe8 {[%clk 0:00:49]} 28. Bc5+ {[%clk 0:01:38]}  Kg7 {[%clk 0:00:31]} 29. Bxd5 {[%clk 0:01:36]}  Nxc5 {[%clk 0:00:29]} 30. Qxc5 {[%clk 0:01:35]}  Qe5 {[%clk 0:00:25]} 31. Qc4 {[%clk 0:01:24]}  Nd4 {[%clk 0:00:22]} 32. Bxb7 {[%clk 0:01:19]}  e3 {[%clk 0:00:19]} 33. f4 {[%clk 0:00:58]}  Qd6 {[%clk 0:00:17]} 34. Kg2 {[%clk 0:00:51]}  h5 {[%clk 0:00:16]} 35. b4 {[%clk 0:00:50]}  axb4 {[%clk 0:00:15]} 36. axb4 {[%clk 0:00:50]}  h4 {[%clk 0:00:16]} 37. Qc5 {[%clk 0:00:43]}  Qd7 {[%clk 0:00:13]} 38. Bc8 {[%clk 0:00:20]}  h3+ {[%clk 0:00:12]} 39. Kf1 {[%clk 0:00:20]}  Qd8 {[%clk 0:00:09]} 40. Bxh3 {[%clk 0:00:20]}  Nb3 {[%clk 0:00:09]} 41. Qc3+ {[%clk 0:00:19]}  Qd4 {[%clk 0:00:09]} 42. Qxd4+ {[%clk 0:00:19]}  Nxd4 {[%clk 0:00:09]} 43. Bd7 {[%clk 0:00:19]}  Kf6 {[%clk 0:00:08]} 44. b5 {[%clk 0:00:19]}  Ke7 {[%clk 0:00:09]} 45. Bc6 {[%clk 0:00:19]}  Kd6 {[%clk 0:00:09]} 46. g4 {[%clk 0:00:18]}  Ne6 {[%clk 0:00:06]} 47. f5 {[%clk 0:00:18]}  gxf5 {[%clk 0:00:07]} 48. gxf5 {[%clk 0:00:19]}  Nd4 {[%clk 0:00:02]} 49. f6 {[%clk 0:00:19]}  Ke6 {[%clk 0:00:02]} 50. Be8 {[%clk 0:00:18]}  Kxf6 {[%clk 0:00:02]} 51. b6 {[%clk 0:00:19]} 1-0


[Site "https://www.chess.com"]

[Event "Titled Tuesday Blitz May 30 Late 2023"]
[White "Rangel, Daniel"]
[Black "Baidetskyi, Valentin"]
[WhiteFideId "2124475"]
[BlackFideId "14142317"]
[WhiteElo "2256"]
[BlackElo "2490"]
[Result "1-0"]
[Round "02"]
[TimeControl "180+2"]
[Date "2023.05.31"]
[WhiteClock "0:00:07"]
[BlackClock "0:00:04"]

1. c4 {[%clk 0:03:00]}  g6 {[%clk 0:02:59]} 2. g3 {[%clk 0:03:00]}  Bg7 {[%clk 0:02:59]} 3. Bg2 {[%clk 0:03:01]}  Nf6 {[%clk 0:03:00]} 4. Nc3 {[%clk 0:03:02]}  O-O {[%clk 0:03:01]} 5. e4 {[%clk 0:03:01]}  c5 {[%clk 0:03:01]} 6. d3 {[%clk 0:03:01]}  Nc6 {[%clk 0:03:00]} 7. Nge2 {[%clk 0:03:02]}  d6 {[%clk 0:02:59]} 8. O-O {[%clk 0:02:59]}  Rb8 {[%clk 0:02:59]} 9. h3 {[%clk 0:02:55]}  a6 {[%clk 0:02:59]} 10. a4 {[%clk 0:02:55]}  Ne8 {[%clk 0:02:56]} 11. Be3 {[%clk 0:02:52]}  Nc7 {[%clk 0:02:56]} 12. d4 {[%clk 0:02:53]}  cxd4 {[%clk 0:02:56]} 13. Nxd4 {[%clk 0:02:54]}  Na5 {[%clk 0:02:53]} 14. b3 {[%clk 0:02:31]}  Bd7 {[%clk 0:02:41]} 15. Nd5 {[%clk 0:02:19]}  Nc6 {[%clk 0:01:14]} 16. Rb1 {[%clk 0:02:08]}  Nxd5 {[%clk 0:01:08]} 17. exd5 {[%clk 0:02:04]}  Nxd4 {[%clk 0:01:07]} 18. Bxd4 {[%clk 0:02:04]}  b5 {[%clk 0:01:08]} 19. Bxg7 {[%clk 0:01:58]}  Kxg7 {[%clk 0:01:09]} 20. Qd4+ {[%clk 0:01:56]}  Kg8 {[%clk 0:01:09]} 21. axb5 {[%clk 0:01:54]}  axb5 {[%clk 0:01:09]} 22. c5 {[%clk 0:01:55]}  dxc5 {[%clk 0:01:05]} 23. Qxc5 {[%clk 0:01:56]}  Bf5 {[%clk 0:00:51]} 24. Rbc1 {[%clk 0:01:46]}  Qd6 {[%clk 0:00:49]} 25. Qxd6 {[%clk 0:01:23]}  exd6 {[%clk 0:00:49]} 26. Rc6 {[%clk 0:01:24]}  Rfd8 {[%clk 0:00:38]} 27. g4 {[%clk 0:01:23]}  Bc8 {[%clk 0:00:33]} 28. Re1 {[%clk 0:01:22]}  Kf8 {[%clk 0:00:29]} 29. Rc7 {[%clk 0:01:17]}  Rd7 {[%clk 0:00:29]} 30. Rec1 {[%clk 0:01:13]}  Rd8 {[%clk 0:00:24]} 31. Ra7 {[%clk 0:01:02]}  Bd7 {[%clk 0:00:16]} 32. Rcc7 {[%clk 0:00:55]}  Ke7 {[%clk 0:00:16]} 33. g5 {[%clk 0:00:51]}  Rbc8 {[%clk 0:00:15]} 34. Rcb7 {[%clk 0:00:42]}  Rb8 {[%clk 0:00:15]} 35. Rc7 {[%clk 0:00:40]}  Rbc8 {[%clk 0:00:16]} 36. Rcb7 {[%clk 0:00:39]}  Rc3 {[%clk 0:00:14]} 37. Bf1 {[%clk 0:00:32]}  Rxb3 {[%clk 0:00:02]} 38. Bxb5 {[%clk 0:00:32]}  Rxb5 {[%clk 0:00:01]} 39. Rxb5 {[%clk 0:00:31]}  Kf8 {[%clk 0:00:01]} 40. Rbb7 {[%clk 0:00:28]}  Be8 {[%clk 0:00:02]} 41. Rb6 {[%clk 0:00:23]}  Kg7 {[%clk 0:00:01]} 42. Rab7 {[%clk 0:00:20]}  Bd7 {[%clk 0:00:01]} 43. Rb8 {[%clk 0:00:19]}  Rxb8 {[%clk 0:00:01]} 44. Rxb8 {[%clk 0:00:19]}  Bf5 {[%clk 0:00:02]} 45. h4 {[%clk 0:00:17]}  Be4 {[%clk 0:00:02]} 46. Rb6 {[%clk 0:00:17]}  f6 {[%clk 0:00:03]} 47. Rb7+ {[%clk 0:00:15]}  Kg8 {[%clk 0:00:04]} 48. gxf6 {[%clk 0:00:15]}  Bxd5 {[%clk 0:00:04]} 49. Rd7 {[%clk 0:00:15]}  Be6 {[%clk 0:00:03]} 50. Rxd6 {[%clk 0:00:15]}  Kf7 {[%clk 0:00:04]} 51. Rb6 {[%clk 0:00:15]}  Kxf6 {[%clk 0:00:05]} 52. Kh2 {[%clk 0:00:15]}  h6 {[%clk 0:00:05]} 53. Kg3 {[%clk 0:00:16]}  Kf7 {[%clk 0:00:04]} 54. Kf4 {[%clk 0:00:15]}  Kf6 {[%clk 0:00:05]} 55. Kg3 {[%clk 0:00:13]}  g5 {[%clk 0:00:05]} 56. f4 {[%clk 0:00:11]}  gxf4+ {[%clk 0:00:02]} 57. Kxf4 {[%clk 0:00:11]}  h5 {[%clk 0:00:02]} 58. Rd6 {[%clk 0:00:10]}  Kf7 {[%clk 0:00:03]} 59. Kg5 {[%clk 0:00:09]}  Bg4 {[%clk 0:00:03]} 60. Rd4 {[%clk 0:00:06]}  Kg7 {[%clk 0:00:03]} 61. Rb4 {[%clk 0:00:06]}  Kf7 {[%clk 0:00:04]} 62. Rb7+ {[%clk 0:00:06]}  Ke6 {[%clk 0:00:04]} 63. Rb2 {[%clk 0:00:05]}  Kf7 {[%clk 0:00:04]} 64. Rf2+ {[%clk 0:00:06]}  Kg7 {[%clk 0:00:05]} 65. Rf6 {[%clk 0:00:06]}  Be2 {[%clk 0:00:05]} 66. Rb6 {[%clk 0:00:05]}  Bg4 {[%clk 0:00:06]} 67. Rb7+ {[%clk 0:00:05]}  Kf8 {[%clk 0:00:06]} 68. Kf6 {[%clk 0:00:05]}  Kg8 {[%clk 0:00:07]} 69. Rg7+ {[%clk 0:00:05]}  Kf8 {[%clk 0:00:07]} 70. Rg5 {[%clk 0:00:06]}  Be2 {[%clk 0:00:07]} 71. Ra5 {[%clk 0:00:07]}  Ke8 {[%clk 0:00:04]} 72. Re5+ {[%clk 0:00:07]} 1-0


[Site "https://www.chess.com"]

[Event "Titled Tuesday Blitz May 30 Late 2023"]
[White "Jarovinsky, Alexey"]
[Black "i_like_explosions"]
[WhiteFideId "14115131"]
[WhiteElo "2446"]
[BlackElo "2380"]
[Result "0-1"]
[Round "02"]
[TimeControl "180+2"]
[Date "2023.05.31"]
[WhiteClock "0:00:02"]
[BlackClock "0:00:29"]

1. Nc3 {[%clk 0:02:52]}  Nf6 {[%clk 0:03:00]} 2. e4 {[%clk 0:02:51]}  d6 {[%clk 0:02:57]} 3. d4 {[%clk 0:02:50]}  Nbd7 {[%clk 0:02:57]} 4. f4 {[%clk 0:02:49]}  c6 {[%clk 0:02:55]} 5. e5 {[%clk 0:02:49]}  Nd5 {[%clk 0:02:52]} 6. Nxd5 {[%clk 0:02:31]}  cxd5 {[%clk 0:02:53]} 7. Nf3 {[%clk 0:02:24]}  e6 {[%clk 0:02:53]} 8. Bd3 {[%clk 0:02:23]}  Be7 {[%clk 0:02:49]} 9. O-O {[%clk 0:01:58]}  Nb6 {[%clk 0:02:28]} 10. Qe1 {[%clk 0:01:43]}  Qc7 {[%clk 0:02:25]} 11. Qg3 {[%clk 0:01:22]}  g6 {[%clk 0:02:14]} 12. b3 {[%clk 0:01:04]}  Bd7 {[%clk 0:02:12]} 13. Bd2 {[%clk 0:01:02]}  O-O-O {[%clk 0:02:09]} 14. a4 {[%clk 0:01:02]}  Kb8 {[%clk 0:02:07]} 15. Ba5 {[%clk 0:00:57]}  f5 {[%clk 0:01:58]} 16. exd6 {[%clk 0:00:53]}  Bxd6 {[%clk 0:01:58]} 17. Ne5 {[%clk 0:00:51]}  Be8 {[%clk 0:01:43]} 18. Qe3 {[%clk 0:00:44]}  Bxe5 {[%clk 0:01:41]} 19. fxe5 {[%clk 0:00:43]}  Qe7 {[%clk 0:01:38]} 20. Qd2 {[%clk 0:00:42]}  g5 {[%clk 0:01:37]} 21. Bb4 {[%clk 0:00:39]}  Qd7 {[%clk 0:01:32]} 22. a5 {[%clk 0:00:27]}  Nc8 {[%clk 0:01:32]} 23. Bc5 {[%clk 0:00:21]}  f4 {[%clk 0:01:25]} 24. c4 {[%clk 0:00:18]}  Bg6 {[%clk 0:01:25]} 25. Be2 {[%clk 0:00:14]}  Be4 {[%clk 0:01:22]} 26. Ra4 {[%clk 0:00:11]}  h5 {[%clk 0:01:21]} 27. Rb4 {[%clk 0:00:10]}  h4 {[%clk 0:01:20]} 28. h3 {[%clk 0:00:09]}  Ka8 {[%clk 0:01:08]} 29. Bf3 {[%clk 0:00:07]}  Bxf3 {[%clk 0:01:08]} 30. gxf3 {[%clk 0:00:08]}  Ne7 {[%clk 0:01:06]} 31. Bxe7 {[%clk 0:00:05]}  Qxe7 {[%clk 0:01:06]} 32. c5 {[%clk 0:00:06]}  Qf7 {[%clk 0:00:44]} 33. Qd3 {[%clk 0:00:06]}  Qh7 {[%clk 0:00:38]} 34. Qxh7 {[%clk 0:00:06]}  Rxh7 {[%clk 0:00:39]} 35. Kf2 {[%clk 0:00:05]}  Rg7 {[%clk 0:00:37]} 36. Rg1 {[%clk 0:00:06]}  a6 {[%clk 0:00:37]} 37. Rg4 {[%clk 0:00:05]}  Rc8 {[%clk 0:00:37]} 38. Rb6 {[%clk 0:00:06]}  Rc6 {[%clk 0:00:37]} 39. Rb4 {[%clk 0:00:06]}  Kb8 {[%clk 0:00:37]} 40. Ra4 {[%clk 0:00:06]}  Kc7 {[%clk 0:00:36]} 41. Ra1 {[%clk 0:00:06]}  Kd7 {[%clk 0:00:32]} 42. Rag1 {[%clk 0:00:06]}  Rc8 {[%clk 0:00:31]} 43. Rxg5 {[%clk 0:00:06]}  Rxg5 {[%clk 0:00:31]} 44. Rxg5 {[%clk 0:00:07]}  Kc6 {[%clk 0:00:32]} 45. Rg7 {[%clk 0:00:04]}  Rc7 {[%clk 0:00:31]} 46. Rg6 {[%clk 0:00:03]}  Re7 {[%clk 0:00:31]} 47. Rf6 {[%clk 0:00:02]}  Kb5 {[%clk 0:00:32]} 48. Rxf4 {[%clk 0:00:02]}  Kxa5 {[%clk 0:00:32]} 49. Rxh4 {[%clk 0:00:02]}  Kb4 {[%clk 0:00:33]} 50. Ke3 {[%clk 0:00:02]}  Kxb3 {[%clk 0:00:33]} 51. Rh8 {[%clk 0:00:02]}  a5 {[%clk 0:00:33]} 52. Rb8 {[%clk 0:00:02]}  a4 {[%clk 0:00:34]} 53. c6 {[%clk 0:00:02]}  Kc3 {[%clk 0:00:27]} 54. Rxb7 {[%clk 0:00:02]}  Re8 {[%clk 0:00:27]} 55. Ra7 {[%clk 0:00:02]}  Kb3 {[%clk 0:00:26]} 56. c7 {[%clk 0:00:01]}  Rc8 {[%clk 0:00:26]} 57. h4 {[%clk 0:00:01]}  a3 {[%clk 0:00:27]} 58. h5 {[%clk 0:00:01]}  a2 {[%clk 0:00:27]} 59. Rb7+ {[%clk 0:00:02]}  Kc2 {[%clk 0:00:27]} 60. Ra7 {[%clk 0:00:03]}  Kb2 {[%clk 0:00:27]} 61. Rb7+ {[%clk 0:00:03]}  Kc2 {[%clk 0:00:28]} 62. Ra7 {[%clk 0:00:04]}  Kb2 {[%clk 0:00:28]} 63. f4 {[%clk 0:00:04]}  a1=Q {[%clk 0:00:28]} 64. Rxa1 {[%clk 0:00:05]}  Kxa1 {[%clk 0:00:28]} 65. f5 {[%clk 0:00:06]}  exf5 {[%clk 0:00:28]} 66. Kf4 {[%clk 0:00:06]}  Rxc7 {[%clk 0:00:28]} 67. e6 {[%clk 0:00:05]}  Kb2 {[%clk 0:00:29]} 68. Kxf5 {[%clk 0:00:05]}  Kc3 {[%clk 0:00:29]} 69. Ke5 {[%clk 0:00:04]}  Kc4 {[%clk 0:00:29]} 70. h6 {[%clk 0:00:03]}  Rh7 {[%clk 0:00:29]} 71. Kf5 {[%clk 0:00:02]}  Rxh6 {[%clk 0:00:29]} 72. e7 {[%clk 0:00:02]}  Rh8 {[%clk 0:00:29]} 73. Ke5 {[%clk 0:00:02]}  Re8 {[%clk 0:00:29]} 0-1


[Site "https://www.chess.com"]